fUSD/lending_fUSD_20260329
["ID","MTS","AMOUNT","RATE_DAILY","PERIOD"]
[419063794,1774823456654,-188223.69639539,0.00016,2]
[419063795,1774823457009,-104327.26251832,0.00016,2]
[419063796,1774823457028,-2293.72232384,0.00016,2]
[419063797,1774823457051,-459.58986104,0.00016,2]
[419063798,1774823457062,-1712.11696904,0.00016,2]
[419063799,1774823457097,-800.6768,0.00016,2]
[419063800,1774823457109,-261.24239902,0.00016,2]
[419063801,1774823457271,-955.11354241,0.00016,2]
[419063802,1774823463148,8688.94087522,8.634e-05,2]
[419063803,1774823463173,10000.01,8.634e-05,2]
[419063804,1774823463199,10000.01,8.634e-05,2]
[419063805,1774823463226,10000.01,8.634e-05,2]
[419063806,1774823463253,10000.01,8.634e-05,2]
[419063807,1774823463280,10000.01,8.634e-05,2]
[419063808,1774823463306,10000.01,8.634e-05,2]
[419063809,1774823463339,10000.01,8.634e-05,2]
[419063810,1774823463366,10000.01,8.634e-05,2]
[419063811,1774823463394,10000.01,8.634e-05,2]
[419063812,1774823471870,-8836.29631254,8.634e-05,2]
[419063813,1774823471970,-10000.01,8.634e-05,2]
[419063814,1774823472086,-10000.01,8.634e-05,2]
[419063815,1774823472205,-10000.01,8.634e-05,2]
[419063816,1774823472362,-10000.01,8.634e-05,2]
[419063817,1774823472482,-10000.01,8.634e-05,2]
[419063818,1774823472584,-10000.01,8.634e-05,2]
[419063819,1774823472677,-10000.01,8.634e-05,2]
[419063820,1774823472870,-10000.01,8.634e-05,2]
[419063821,1774823472980,-10000.01,8.634e-05,2]
[419063822,1774823475404,208.26,8.081e-05,2]
[419063823,1774823477951,-10000.01,8.634e-05,2]
[419063824,1774823478081,-10000.01,8.634e-05,2]
[419063825,1774823478226,-10000.01,8.634e-05,2]
[419063826,1774823478345,-10000.01,8.634e-05,2]
[419063827,1774823478456,-10000.01,8.634e-05,2]
[419063828,1774823478556,-10000.01,8.634e-05,2]
[419063829,1774823478665,-10000.01,8.634e-05,2]
[419063830,1774823478780,-10000.01,8.634e-05,2]
[419063831,1774823478907,-10000.01,8.634e-05,2]
[419063832,1774823479044,-10000.01,8.634e-05,2]
[419063833,1774823492109,2336.219,8.461e-05,2]
[419063834,1774823492311,167.379,8.461e-05,2]
[419063835,1774823506289,400.0,8.9e-05,3]
[419063836,1774823508467,800.0,9e-05,3]
[419063837,1774823537833,1080.0,8.289e-05,2]
[419063838,1774823603423,860.05,8.055e-05,2]
[419063839,1774823605671,900.0,8.125e-05,2]
[419063840,1774823605805,800.0,8.213e-05,2]
[419063841,1774823605962,1700.0,8.356e-05,2]
[419063842,1774823606151,1300.0,8.363e-05,2]
[419063843,1774823606306,600.0,8.432e-05,2]
[419063844,1774823678472,217.18,8.178e-05,2]
[419063845,1774823690944,1852.42,7.825e-05,2]
[419063846,1774823702703,177.01,6.26e-05,2]
[419063847,1774823702899,177.01,6.886e-05,2]
[419063848,1774823704564,177.01,7.512e-05,2]
[419063849,1774823704906,177.01,8.138e-05,2]
[419063850,1774823776070,200.0,7.734e-05,2]
[419063852,1774823860573,376.8,7.52e-05,2]
[419063853,1774823863406,-166.0,8.493e-05,2]
[419063854,1774823902990,200.0,8.6e-05,3]
[419063855,1774823905078,500.0,8.7e-05,3]
[419063856,1774823907184,800.0,8.8e-05,3]
[419063857,1774823909702,1100.0,8.9e-05,3]
[419063858,1774823911399,1300.0,9e-05,3]
[419063859,1774823951801,5108.46,8.219e-05,2]
[419063860,1774823956031,-500.0,8.513e-05,2]
[419063861,1774823983305,380.61,8.231e-05,2]
[419063862,1774823985240,-250.0,8.517e-05,2]
[419063863,1774824061034,1600.0,7.698e-05,2]
[419063864,1774824077301,-250.0,8.521e-05,2]
[419063865,1774824107569,666.76,8.218e-05,2]
[419063866,1774824121524,300.0,8.521e-05,2]
[419063867,1774824121755,300.0,8.521e-05,2]
[419063868,1774824122686,300.0,8.521e-05,2]
[419063869,1774824123173,-0.01,8.522e-05,2]
[419063870,1774824126054,-0.02,8.522e-05,2]
[419063871,1774824129093,-0.04,8.522e-05,2]
[419063872,1774824134903,-0.08,8.522e-05,2]
[419063873,1774824138140,-0.16,8.522e-05,2]
[419063874,1774824141113,-0.32,8.522e-05,2]
[419063875,1774824144531,-0.64,8.522e-05,2]
[419063876,1774824147176,-1.28,8.522e-05,2]
[419063877,1774824150207,-2.56,8.522e-05,2]
[419063878,1774824153236,-5.12,8.522e-05,2]
[419063879,1774824156287,-10.24,8.522e-05,2]
[419063880,1774824159283,-20.48,8.522e-05,2]
[419063881,1774824162382,-40.96,8.522e-05,2]
[419063882,1774824167851,-81.92,8.522e-05,2]
[419063883,1774824168334,-163.84,8.522e-05,2]
[419063884,1774824168937,620.0,8.278e-05,2]
[419063885,1774824171361,-327.68,8.522e-05,2]
[419063886,1774824174433,-655.36,8.522e-05,2]
[419063887,1774824177374,-1310.72,8.522e-05,2]
[419063888,1774824180444,-2378.57,8.522e-05,2]
[419063889,1774824184085,-1200.0,8.522e-05,2]
[419063890,1774824184119,-1200.0,8.522e-05,2]
[419063891,1774824184153,-282.24128288,8.522e-05,2]
[419063892,1774824184187,-150.0,8.522e-05,2]
[419063893,1774824184219,-200.51193558,8.522e-05,2]
[419063894,1774824231656,1200.0,8.522e-05,2]
[419063895,1774824241242,300.0,8.522e-05,2]
[419063896,1774824301077,300.0,8.522e-05,2]
[419063897,1774824301166,1200.0,8.522e-05,2]
[419063898,1774824301810,300.0,8.522e-05,2]
[419063899,1774824303054,300.0,8.522e-05,2]
[419063900,1774824365508,651.8,8.219e-05,2]
[419063901,1774824376138,-2453.03,8.523e-05,2]
[419063902,1774824376170,-175.748,8.523e-05,2]
[419063903,1774824392272,-150.0,8.532e-05,2]
[419063904,1774824438648,500.0,8.6e-05,3]
[419063905,1774824440412,1000.0,8.7e-05,3]
[419063906,1774824442516,1500.0,8.8e-05,3]
[419063907,1774824444633,2000.0,8.9e-05,3]
[419063908,1774824446750,2600.0,9e-05,3]
[419063909,1774824481286,1000.0,7.984e-05,2]
[419063910,1774824481350,150.0,8.532e-05,2]
[419063911,1774824481826,600.0,8.255e-05,2]
[419063912,1774824482380,1300.0,8.416e-05,2]
[419063913,1774824483184,300.0,8.532e-05,2]
[419063914,1774824541221,300.0,8.532e-05,2]
[419063915,1774824553755,2258.95,7.777e-05,2]
[419063916,1774824554277,2400.0,8.01e-05,2]
[419063917,1774824554814,1691.06,8.129e-05,2]
[419063918,1774824554840,208.94,8.129e-05,2]
[419063919,1774824555337,1460.0,8.441e-05,2]
[419063920,1774824601539,300.0,8.532e-05,2]
[419063921,1774824601596,1200.0,8.532e-05,2]
[419063922,1774824619174,640.0,7.949e-05,2]
[419063960,1774824632115,-500.0,8.533e-05,2]
[419063962,1774824632126,-616.10093758,8.533e-05,2]
[419063965,1774824632183,-279.95918376,8.533e-05,2]
[419063966,1774824632311,-4103.93987866,8.533e-05,2]
[419063967,1774824632320,-500.0,8.533e-05,2]
[419063968,1774824632330,-458.69416358,8.533e-05,2]
[419063969,1774824632339,-140.5605246,8.533e-05,2]
[419063970,1774824632351,-359.4394754,8.533e-05,2]
[419063971,1774824632361,-242.18743965,8.533e-05,2]
[419063972,1774824632377,-257.81256035,8.533e-05,2]
[419063973,1774824632387,-500.0,8.533e-05,2]
[419063974,1774824632396,-500.0,8.533e-05,2]
[419063975,1774824632406,-500.0,8.533e-05,2]
[419063976,1774824632416,-500.0,8.533e-05,2]
[419063977,1774824632426,-500.0,8.533e-05,2]
[419063978,1774824632436,-500.0,8.533e-05,2]
[419063979,1774824632446,-500.0,8.533e-05,2]
[419063980,1774824632455,-500.0,8.533e-05,2]
[419063981,1774824632465,-500.0,8.533e-05,2]
[419063982,1774824632477,-500.0,8.533e-05,2]
[419063983,1774824632486,-500.0,8.533e-05,2]
[419063984,1774824632496,-500.0,8.533e-05,2]
[419063985,1774824632505,-500.0,8.533e-05,2]
[419063986,1774824632515,-500.0,8.533e-05,2]
[419063987,1774824632525,-500.0,8.533e-05,2]
[419063988,1774824632534,-500.0,8.533e-05,2]
[419063989,1774824632543,-500.0,8.533e-05,2]
[419063991,1774824632553,-500.0,8.533e-05,2]
[419063993,1774824632563,-500.0,8.533e-05,2]
[419063995,1774824632573,-500.0,8.533e-05,2]
[419063997,1774824632582,-500.0,8.533e-05,2]
[419063999,1774824632591,-500.0,8.533e-05,2]
[419064001,1774824632600,-500.0,8.533e-05,2]
[419064003,1774824632610,-500.0,8.533e-05,2]
[419064005,1774824632620,-542.86478736,8.533e-05,2]
[419064007,1774824632629,-500.0,8.533e-05,2]
[419064009,1774824632639,-500.0,8.533e-05,2]
[419064010,1774824632649,-500.0,8.533e-05,2]
[419064012,1774824632658,-500.0,8.533e-05,2]
[419064014,1774824632668,-500.0,8.533e-05,2]
[419064016,1774824632678,-500.0,8.533e-05,2]
[419064018,1774824632688,-500.0,8.533e-05,2]
[419064019,1774824632698,-500.0,8.533e-05,2]
[419064020,1774824632707,-194.56154601,8.533e-05,2]
[419064021,1774824632720,-500.0,8.533e-05,2]
[419064022,1774824632729,-500.0,8.533e-05,2]
[419064023,1774824632738,-500.0,8.533e-05,2]
[419064024,1774824632748,-500.0,8.533e-05,2]
[419064025,1774824632757,-500.0,8.533e-05,2]
[419064026,1774824632767,-4.76110628,8.533e-05,2]
[419064027,1774824632779,-495.23889372,8.533e-05,2]
[419064028,1774824632788,-500.0,8.533e-05,2]
[419064029,1774824632798,-500.0,8.533e-05,2]
[419064030,1774824632808,-500.0,8.533e-05,2]
[419064031,1774824632821,-500.0,8.533e-05,2]
[419064032,1774824632831,-500.0,8.533e-05,2]
[419064033,1774824632840,-500.0,8.533e-05,2]
[419064034,1774824632850,-500.0,8.533e-05,2]
[419064035,1774824632860,-500.0,8.533e-05,2]
[419064036,1774824632870,-500.0,8.533e-05,2]
[419064037,1774824632879,-500.0,8.533e-05,2]
[419064038,1774824632888,-500.0,8.533e-05,2]
[419064039,1774824632898,-500.0,8.533e-05,2]
[419064040,1774824632907,-500.0,8.533e-05,2]
[419064041,1774824632916,-500.0,8.533e-05,2]
[419064042,1774824632926,-228.48438144,8.533e-05,2]
[419064043,1774824632937,-500.0,8.533e-05,2]
[419064044,1774824632947,-500.0,8.533e-05,2]
[419064045,1774824632956,-500.0,8.533e-05,2]
[419064046,1774824632965,-500.0,8.533e-05,2]
[419064047,1774824632978,-314.90901119,8.533e-05,2]
[419064048,1774824632987,-500.0,8.533e-05,2]
[419064049,1774824632997,-429.30919449,8.533e-05,2]
[419064050,1774824633006,-531.64931273,8.533e-05,2]
[419064051,1774824633016,-392.38607579,8.533e-05,2]
[419064052,1774824633025,-500.0,8.533e-05,2]
[419064053,1774824633035,-516.15736083,8.533e-05,2]
[419064054,1774824633044,-500.0,8.533e-05,2]
[419064055,1774824633053,-500.0,8.533e-05,2]
[419064056,1774824633063,-500.0,8.533e-05,2]
[419064057,1774824633072,-421.08380992,8.533e-05,2]
[419064058,1774824633081,-531.64931272,8.533e-05,2]
[419064059,1774824633091,-338.15174333,8.533e-05,2]
[419064060,1774824633100,-500.0,8.533e-05,2]
[419064061,1774824633109,-500.0,8.533e-05,2]
[419064062,1774824633119,-500.0,8.533e-05,2]
[419064063,1774824633129,-416.88796346,8.533e-05,2]
[419064064,1774824633138,-531.64931272,8.533e-05,2]
[419064065,1774824633147,-531.64931272,8.533e-05,2]
[419064066,1774824633157,-531.64931272,8.533e-05,2]
[419064067,1774824633167,-531.64931272,8.533e-05,2]
[419064068,1774824633176,-531.64931272,8.533e-05,2]
[419064069,1774824633185,-531.64931272,8.533e-05,2]
[419064070,1774824633195,-531.64931272,8.533e-05,2]
[419064071,1774824633205,-531.64931272,8.533e-05,2]
[419064072,1774824633214,-500.0,8.533e-05,2]
[419064073,1774824633226,-563.29862544,8.533e-05,2]
[419064074,1774824633236,-531.64931272,8.533e-05,2]
[419064075,1774824633245,-531.64931272,8.533e-05,2]
[419064076,1774824633255,-531.64931272,8.533e-05,2]
[419064077,1774824633264,-531.64931272,8.533e-05,2]
[419064078,1774824633274,-500.0,8.533e-05,2]
[419064079,1774824633283,-421.50804321,8.533e-05,2]
[419064080,1774824633325,-141.79058223,8.533e-05,2]
[419064081,1774824633335,-531.64931272,8.533e-05,2]
[419064082,1774824633344,-531.64931272,8.533e-05,2]
[419064083,1774824633353,-531.64931272,8.533e-05,2]
[419064084,1774824633363,-531.64931272,8.533e-05,2]
[419064085,1774824633372,-531.64931272,8.533e-05,2]
[419064086,1774824633381,-531.64931272,8.533e-05,2]
[419064087,1774824633391,-531.64931272,8.533e-05,2]
[419064088,1774824633400,-531.64931272,8.533e-05,2]
[419064089,1774824633410,-531.64931272,8.533e-05,2]
[419064090,1774824633420,-531.64931272,8.533e-05,2]
[419064091,1774824633431,-531.64931272,8.533e-05,2]
[419064092,1774824633440,-531.64931272,8.533e-05,2]
[419064093,1774824633450,-500.0,8.533e-05,2]
[419064094,1774824633459,-563.29862544,8.533e-05,2]
[419064095,1774824633471,-531.64931272,8.533e-05,2]
[419064096,1774824633480,-152.79790025,8.533e-05,2]
[419064097,1774824633489,-272.90315552,8.533e-05,2]
[419064098,1774824633499,-4566.50840311,8.533e-05,2]
[419064099,1774824633508,-940.31,8.533e-05,2]
[419064100,1774824633518,-153.64087258,8.533e-05,2]
[419064101,1774824633527,-5000.0,8.533e-05,2]
[419064102,1774824633536,-46015.58021409,8.534e-05,2]
[419064103,1774824633547,-327.65922832,8.534e-05,2]
[419064104,1774824633562,-3255.16,8.534e-05,2]
[419064105,1774824637215,-2286.65,8.534e-05,2]
[419064115,1774824640774,-410.03200002,8.534e-05,2]
[419064116,1774824640787,-2796.8655076,8.534e-05,2]
[419064117,1774824640798,-3907.099965,8.534e-05,2]
[419064118,1774824640814,-60764.665332,8.534e-05,2]
[419064119,1774824641013,-10000.01,8.534e-05,2]
[419064120,1774824641033,-10000.01,8.534e-05,2]
[419064121,1774824641049,-10000.01,8.534e-05,2]
[419064122,1774824641065,-10000.01,8.534e-05,2]
[419064123,1774824641128,-10000.01,8.534e-05,2]
[419064124,1774824641144,-10000.01,8.534e-05,2]
[419064125,1774824641163,-10000.01,8.534e-05,2]
[419064126,1774824641668,-793770.99023179,8.534e-05,2]
[419064127,1774824641837,-1111.05679401,8.534e-05,2]
[419064130,1774824641894,-1515354.17072717,8.534e-05,2]
[419064132,1774824641903,-23058.2545,8.534e-05,2]
[419064134,1774824641913,-153.64087257,8.534e-05,2]
[419064136,1774824641923,-2600.0,8.588e-05,2]
[419064138,1774824641932,-500.0,8.613e-05,2]
[419064140,1774824641941,-500.0,8.613e-05,2]
[419064142,1774824641951,-171.50157608,8.613e-05,2]
[419064144,1774824641961,-500.0,8.613e-05,2]
[419064146,1774824641970,-500.0,8.613e-05,2]
[419064147,1774824641984,-500.0,8.613e-05,2]
[419064149,1774824641993,-500.0,8.613e-05,2]
[419064151,1774824642003,-150.99,8.613e-05,2]
[419064152,1774824642012,-299.99,8.613e-05,2]
[419064153,1774824642022,-999.99,8.613e-05,2]
[419064154,1774824642032,-9999.99,8.613e-05,2]
[419064155,1774824642042,-354.69,8.613e-05,2]
[419064156,1774824642054,-2267.62,8.613e-05,2]
[419064157,1774824642064,-1159.87,8.613e-05,2]
[419064158,1774824642073,-9999.99,8.613e-05,2]
[419064159,1774824642083,-8028.13,8.613e-05,2]
[419064160,1774824642093,-150.99,8.613e-05,2]
[419064161,1774824642103,-2997.56,8.613e-05,2]
[419064163,1774824642112,-9999.99,8.613e-05,2]
[419064164,1774824642122,-1842.25,8.613e-05,2]
[419064166,1774824642133,-8455.71,8.613e-05,2]
[419064168,1774824642143,-500.0,8.613e-05,2]
[419064170,1774824642153,-17980.72770278,8.613e-05,2]
[419064172,1774824642162,-1967.898743,8.613e-05,2]
[419064174,1774824642171,-151.0,8.63e-05,2]
[419064176,1774824642181,-435.89577801,8.634e-05,2]
[419064178,1774824642190,-497.0641286,8.634e-05,2]
[419064180,1774824642200,-751.59,8.635e-05,2]
[419064182,1774824642210,-1600.0,8.661e-05,2]
[419064184,1774824642219,-500.0,8.664e-05,2]
[419064186,1774824642231,-170.0,8.689e-05,2]
[419064190,1774824642241,-1990.02,8.732e-05,2]
[419064193,1774824642251,-274.39,8.757e-05,2]
[419064195,1774824642260,-177.01,8.764e-05,2]
[419064197,1774824642269,-216.0,8.778e-05,2]
[419064199,1774824642278,-500.0,8.807e-05,2]
[419064200,1774824642288,-940.31,8.807e-05,2]
[419064202,1774824642298,-192.0,8.808e-05,2]
[419064204,1774824642307,-244.0,8.81e-05,2]
[419064206,1774824642316,-363.0,8.825e-05,2]
[419064208,1774824642326,-289.0,8.843e-05,2]
[419064210,1774824642336,-172.0,8.883e-05,2]
[419064212,1774824642346,-941.0,8.9e-05,2]
[419064214,1774824642355,-953.0,8.918e-05,2]
[419064216,1774824642366,-1089.48,8.921e-05,2]
[419064218,1774824642376,-781.0,8.936e-05,2]
[419064220,1774824642386,-1745.0,8.954e-05,2]
[419064222,1774824642395,-1900.0,8.966e-05,2]
[419064224,1774824642406,-233.0,8.971e-05,2]
[419064226,1774824642416,-624.0,8.989e-05,2]
[419064228,1774824642426,-1000.0,8.999e-05,2]
[419064230,1774824642435,-817.0,9.007e-05,2]
[419064232,1774824642444,-1417.0,9.025e-05,2]
[419064234,1774824642454,-1409.0,9.042e-05,2]
[419064236,1774824642464,-1584.0,9.06e-05,2]
[419064238,1774824642473,-959.0,9.078e-05,2]
[419064240,1774824642485,-500.0,9.081e-05,2]
[419064242,1774824642495,-940.31,9.081e-05,2]
[419064244,1774824642505,-409.65,9.082e-05,2]
[419064246,1774824642515,-553.07,9.124e-05,2]
[419064248,1774824642524,-962.85,9.145e-05,2]
[419064250,1774824642534,-500.0,9.161e-05,2]
[419064252,1774824642544,-1000.0,9.161e-05,2]
[419064254,1774824642553,-1000.0,9.161e-05,2]
[419064256,1774824642563,-592.36520232,9.161e-05,2]
[419064258,1774824642574,-631.94084691,9.161e-05,2]
[419064260,1774824642583,-1003.28384066,9.161e-05,2]
[419064262,1774824642593,-1000.0,9.161e-05,2]
[419064264,1774824642603,-1000.0,9.231e-05,2]
[419064266,1774824642613,-2750.6,9.25e-05,2]
[419064268,1774824642622,-2750.6,9.25e-05,2]
[419064270,1774824642632,-2750.6,9.25e-05,2]
[419064272,1774824642642,-2750.6,9.25e-05,2]
[419064274,1774824642651,-2750.6,9.25e-05,2]
[419064277,1774824642660,-2750.6,9.25e-05,2]
[419064278,1774824642670,-2750.6,9.25e-05,2]
[419064280,1774824642679,-2750.6,9.25e-05,2]
[419064282,1774824642689,-2750.6,9.25e-05,2]
[419064285,1774824642699,-940.31,9.355e-05,2]
[419064287,1774824642709,-250.0,9.375e-05,2]
[419064288,1774824642718,-5077.44738733,9.375e-05,2]
[419064290,1774824642727,-193.0,9.375e-05,2]
[419064292,1774824642742,-255.0,9.385e-05,2]
[419064294,1774824642752,-1680.0,9.385e-05,2]
[419064295,1774824642762,-5000.0,9.386e-05,2]
[419064296,1774824642771,-250.0,9.386e-05,2]
[419064297,1774824642780,-250.0,9.386e-05,2]
[419064298,1774824642790,-5000.0,9.386e-05,2]
[419064299,1774824642799,-177.01,9.39e-05,2]
[419064300,1774824642810,-150.0,9.4e-05,2]
[419064301,1774824642820,-428.33,9.442e-05,2]
[419064302,1774824642829,-675.01,9.574e-05,2]
[419064305,1774824642838,-2683.18,9.6e-05,2]
[419064306,1774824642848,-2746.31,9.6e-05,2]
[419064309,1774824642857,-344.83,9.6e-05,2]
[419064311,1774824642866,-905.3,9.6e-05,2]
[419064312,1774824642876,-1434.92,9.6e-05,2]
[419064313,1774824642885,-2757.46,9.6e-05,2]
[419064314,1774824642894,-2718.0,9.6e-05,2]
[419064315,1774824642904,-2718.0,9.6e-05,2]
[419064316,1774824642914,-2718.0,9.6e-05,2]
[419064319,1774824642923,-2718.0,9.6e-05,2]
[419064321,1774824642933,-1600.0,9.623e-05,2]
[419064323,1774824642942,-940.31,9.628e-05,2]
[419064325,1774824642952,-197.01734564,9.708e-05,2]
[419064327,1774824642961,-1500.0,9.708e-05,2]
[419064328,1774824642971,-291.02,9.757e-05,2]
[419064329,1774824642983,-218.52,9.789e-05,2]
[419064331,1774824642992,-940.31,9.902e-05,2]
[419064333,1774824643002,-169.96699048,0.0001,2]
[419064335,1774824643012,-209.03210697,0.0001,2]
[419064336,1774824643022,-213.95007999,0.0001,2]
[419064337,1774824643031,-202.0371948,0.0001,2]
[419064338,1774824643040,-200.0,0.0001,2]
[419064339,1774824643050,-500.0,0.0001,2]
[419064341,1774824643072,-500.0,0.0001,2]
[419064343,1774824643082,-500.0,0.0001,2]
[419064344,1774824643092,-500.0,0.0001,2]
[419064345,1774824643102,-500.0,0.0001,2]
[419064346,1774824643113,-383.5969557,0.0001,2]
[419064347,1774824643123,-500.0,0.0001,2]
[419064348,1774824643133,-500.0,0.0001,2]
[419064349,1774824643143,-151.0,0.0001,2]
[419064350,1774824643153,-500.0,0.0001,2]
[419064351,1774824643163,-500.0,0.0001,2]
[419064352,1774824643173,-151.0,0.0001,2]
[419064353,1774824643183,-500.0,0.0001,2]
[419064355,1774824643192,-500.0,0.0001,2]
[419064357,1774824643202,-151.0,0.0001,2]
[419064361,1774824643212,-500.0,0.0001,2]
[419064363,1774824643222,-500.0,0.0001,2]
[419064367,1774824643234,-151.0,0.0001,2]
[419064368,1774824643244,-500.0,0.0001,2]
[419064371,1774824643254,-500.0,0.0001,2]
[419064373,1774824643264,-151.0,0.0001,2]
[419064375,1774824643274,-151.0,0.0001,2]
[419064377,1774824643283,-500.0,0.0001,2]
[419064380,1774824643293,-500.0,0.0001,2]
[419064383,1774824643303,-151.0,0.0001,2]
[419064386,1774824643312,-151.0,0.0001,2]
[419064389,1774824643322,-500.0,0.0001,2]
[419064391,1774824643332,-151.0,0.0001,2]
[419064393,1774824643341,-500.0,0.0001,2]
[419064395,1774824643350,-151.0,0.0001,2]
[419064397,1774824643360,-500.0,0.0001,2]
[419064399,1774824643370,-151.0,0.0001,2]
[419064401,1774824643380,-500.0,0.0001,2]
[419064403,1774824643390,-151.0,0.0001,2]
[419064404,1774824643400,-500.0,0.0001,2]
[419064405,1774824643410,-151.0,0.0001,2]
[419064406,1774824643420,-1386.78395259,0.0001,2]
[419064407,1774824643429,-151.0,0.0001,2]
[419064408,1774824643439,-151.0,0.0001,2]
[419064409,1774824643450,-151.0,0.0001,2]
[419064410,1774824643460,-151.0,0.0001,2]
[419064411,1774824643470,-151.0,0.0001,2]
[419064412,1774824643480,-151.0,0.0001,2]
[419064413,1774824643490,-151.0,0.0001,2]
[419064414,1774824643500,-151.0,0.0001,2]
[419064415,1774824643510,-151.0,0.0001,2]
[419064416,1774824643520,-151.0,0.0001,2]
[419064417,1774824643530,-151.0,0.0001,2]
[419064418,1774824643540,-151.0,0.0001,2]
[419064419,1774824643549,-151.0,0.0001,2]
[419064420,1774824643559,-151.0,0.0001,2]
[419064421,1774824643569,-151.0,0.0001,2]
[419064422,1774824643579,-151.0,0.0001,2]
[419064423,1774824643588,-151.0,0.0001,2]
[419064424,1774824643598,-151.0,0.0001,2]
[419064425,1774824643607,-151.0,0.0001,2]
[419064426,1774824643616,-151.0,0.0001,2]
[419064427,1774824643626,-499.79551583,0.0001,2]
[419064428,1774824643636,-150.0,0.0001,2]
[419064429,1774824643646,-150.0,0.0001,2]
[419064430,1774824643655,-152.50041022,0.0001,2]
[419064431,1774824643665,-183.48101927,0.0001,2]
[419064432,1774824643675,-940.31,0.00010176,2]
[419064433,1774824643685,-2000.0,0.00010256,2]
[419064434,1774824643696,-433.0,0.00010323,2]
[419064435,1774824643706,-2351.0,0.00010323,2]
[419064436,1774824643716,-940.38,0.0001045,2]
[419064437,1774824643725,-20710.18,0.00010475,2]
[419064438,1774824643738,-9999.99,0.00010475,2]
[419064439,1774824643748,-458.86,0.00010505,2]
[419064440,1774824643758,-200.0,0.00010548,2]
[419064441,1774824643768,-1438.09495884,0.00010548,2]
[419064442,1774824643778,-151.0,0.00010548,2]
[419064443,1774824643787,-1600.0,0.00010585,2]
[419064444,1774824643797,-500.0,0.00010685,2]
[419064445,1774824643807,-196.8889,0.000108,2]
[419064446,1774824643816,-2076.75669663,0.00010804,2]
[419064447,1774824643826,-2641.642114,0.00010877,2]
[419064448,1774824643835,-222.938453,0.00010877,2]
[419064449,1774824643845,-653.320731,0.00010877,2]
[419064450,1774824643854,-500.0,0.00010959,2]
[419064451,1774824643864,-168.31887754,0.00010959,2]
[419064452,1774824643874,-3282.16832312,0.00011,2]
[419064453,1774824643883,-3157.716857,0.00011082,2]
[419064454,1774824643893,-1553.907123,0.00011082,2]
[419064455,1774824643903,-1476.254599,0.00011082,2]
[419064456,1774824643918,-200.0,0.00011096,2]
[419064458,1774824643928,-1491.30447232,0.00011096,2]
[419064460,1774824643938,-267.40193029,0.00011096,2]
[419064462,1774824643947,-25995.60439321,0.00011099,2]
[419064463,1774824643957,-28623.42782614,0.00011099,2]
[419064465,1774824643967,-28623.42782605,0.00011099,2]
[419064466,1774824643977,-28623.42782605,0.00011099,2]
[419064467,1774824643990,-28623.42782605,0.00011099,2]
[419064468,1774824644000,-500.0,0.00011123,2]
[419064469,1774824644010,-150.0,0.00011233,2]
[419064470,1774824644020,-250.0,0.00011274,2]
[419064471,1774824644030,-736.0,0.00011356,2]
[419064472,1774824644041,-3292.0,0.00011356,2]
[419064473,1774824644050,-28623.42782605,0.00011432,2]
[419064475,1774824644060,-5108.46,0.00011507,2]
[419064477,1774824644070,-1600.0,0.00011548,2]
[419064479,1774824644080,-200.0,0.00011644,2]
[419064481,1774824644089,-1546.48273779,0.00011644,2]
[419064483,1774824644100,-500.0,0.00011808,2]
[419064484,1774824644109,-200.0,0.00012,2]
[419064486,1774824644119,-499.79551582,0.00012167,2]
[419064487,1774824644129,-28623.42782605,0.00012181,2]
[419064488,1774824644139,-200.0,0.00012192,2]
[419064490,1774824644148,-1603.70259909,0.00012192,2]
[419064491,1774824644158,-258.4349,0.000122,2]
[419064493,1774824644167,-3812.157452,0.00012235,2]